{"text_format":"1","workbook":"xlsx","n_sheets":2,"sheets":["Codes","SI Data"],"not_rendered":{"charts":0,"images":0,"macros":1,"external_links":1,"defined_names":4,"comments":0,"pivot_tables":0},"unopened":[],"bounds":{"document_bytes":16777216,"sheet_cells":100000,"rows_first":2000,"rows_last":500,"rows_between":2000,"halvings":0,"cell_chars":16384,"cell_head_chars":4096},"cells_cut":0,"cells_raw":0,"read":"whole","date_system":"1900"}

{"sheet":"Codes","index":0,"n_rows":85,"n_cols":24,"rows_kept":85,"cut":false,"hidden":true,"merged":[[0,1,0,2],[0,6,0,7],[0,10,0,13],[1,10,1,11],[1,12,1,13]]}
["Gender","Unemployed",null,"Day","Month","Year","Age Range",null,"Inverse Yr","School YearAttained","Outcomes",null,null,null,"WP Intake",null,"Job Network Status",null,"Unemployment Status",null,"Drop Down List for Month",null,"Qualification Level"]
["Mr","Less than 12 months","<12",null,null,null,"Min Age",15,null,"P","Employment",null,"Training",null,null,null,"Not on Benefit","NOB","Employed - N/A",null,"January",null,"Certificate I","CERTI"]
["Mrs","Between 12 and 24 months","12-24",1,"Jan",{"$f":"YEAR(TODAY())-12-ROW()","v":2008},"Max Age",65,null,8,"Less than 25 hrs per week","<25",null,null,"Project 1",null,"JobSeeker Payment","JSP","Less than 12 months",null,"February",null,"Certificate II","CERTII"]
["Ms","Greater than 24 months",">24",2,"Feb",{"$f":"YEAR(TODAY())-12-ROW()","v":2007},null,null,null,9,"More than 25 hrs per week",">25","Returned to School","RTS","Project 2",null,"Youth Allowance","YOU","12 - 24 months",null,"March",null,"Certificate III","CERTIII"]
["Miss","Employed - N/A","N/A",3,"Mar",2006,null,null,null,10,"Not Employed","NE","Full Time Training","FTT","Project 3",null,"Age Pension","AGP","Greater than 24 months",null,"April",null,"Certificate IV","CERTIV"]
[null,null,null,4,"Apr",2005,null,null,null,11,"Not in Labour Force","NILF","Part Time Training","PTT","Project 4",null,"Carer Allowance","CA",null,null,"May",null,"Diploma","Diploma"]
[null,null,null,5,"May",2004,null,null,null,12,"Volunteer Work","VW","No Outcome","NO","Project 5",null,"Parenting Payment","PAP",null,null,"June",null,"Skillsets","Skillsets"]
[null,null,null,6,"Jun",2003,null,null,null,null,null,null,null,null,"Project 6",null,"Disability Support Pension","DIS",null,null,"July",null,"Foundation Skills","FS"]
[null,null,null,7,"Jul",2002,null,null,null,null,null,null,null,null,"Project 7",null,"Austudy","AUS",null,null,"August",null,"Not Applicable","N/A"]
[null,null,null,8,"Aug",2001,null,null,{"$f":"YEAR(TODAY())+ROW()-14","v":2019},null,null,null,null,null,"Project 8",null,"ABSTUDY","ABS",null,null,"September"]
[null,null,null,9,"Sep",2000,null,null,{"$f":"YEAR(TODAY())+ROW()-14","v":2020},null,null,null,null,null,"Project 9",null,"Farm Household Allowance","FHA",null,null,"October"]
[null,null,null,10,"Oct",1999,null,null,{"$f":"YEAR(TODAY())+ROW()-14","v":2021},null,null,null,null,null,"Project 10",null,null,null,null,null,"November"]
[null,null,null,11,"Nov",1998,null,null,{"$f":"YEAR(TODAY())+ROW()-14","v":2022},null,null,null,null,null,"Project 11",null,null,null,null,null,"December"]
[null,null,null,12,"Dec",1997,null,null,{"$f":"YEAR(TODAY())","v":2023},null,null,null,null,null,"Project 12"]
[null,null,null,13,null,1996,null,null,null,null,null,null,null,null,"Project 13"]
[null,null,null,14,null,1995,null,null,null,null,null,null,null,null,"Project 14"]
[null,null,null,15,null,1994,null,null,null,null,null,null,null,null,"Project 15"]
[null,null,null,16,null,1993,null,null,null,null,null,null,null,null,"Project 16"]
[null,null,null,17,null,1992,null,null,null,null,null,null,null,null,"Project 17"]
[null,null,null,18,null,1991,null,null,null,null,"IMPORTANT",null,null,null,"Project 18"]
[null,null,null,19,null,1990,null,null,null,null,null,null,null,null,"Project 19"]
[null,null,null,20,null,1989,null,null,null,null,null,null,null,null,"Project 20"]
[null,null,null,21,null,1988]
[null,null,null,22,null,1987]
[null,null,null,23,null,1986]
[null,null,null,24,null,1985]
[null,null,null,25,null,1984]
[null,null,null,26,null,1983]
[null,null,null,27,null,1982]
[null,null,null,28,null,1981]
[null,null,null,29,null,1980]
[null,null,null,30,null,1979]
[null,null,null,31,null,1978]
[null,null,null,null,null,1977]
[null,null,null,null,null,1976]
[null,null,null,null,null,1975]
[null,null,null,null,null,1974]
[null,null,null,null,null,1973]
[null,null,null,null,null,1972]
[null,null,null,null,null,1971]
[null,null,null,null,null,1970]
[null,null,null,null,null,1969]
[null,null,null,null,null,1968]
[null,null,null,null,null,1967]
[null,null,null,null,null,1966]
[null,null,null,null,null,1965]
[null,null,null,null,null,1964]
[null,null,null,null,null,1963]
[null,null,null,null,null,1962]
[null,null,null,null,null,1961]
[null,null,null,null,null,1960]
[null,null,null,null,null,1959]
[null,null,null,null,null,1958]
[null,null,null,null,null,1957]
[null,null,null,null,null,1956]
[null,null,null,null,null,1955]
[null,null,null,null,null,1954]
[null,null,null,null,null,1953]
[null,null,null,null,null,1952]
[null,null,null,null,null,1951]
[null,null,null,null,null,1950]
[null,null,null,null,null,1949]
[null,null,null,null,null,1948]
[null,null,null,null,null,1947]
[null,null,null,null,null,1946]
[null,null,null,null,null,1945]
[null,null,null,null,null,1944]
[null,null,null,null,null,{"$f":"YEAR(TODAY())-12-ROW()","v":1943}]
[null,null,null,null,null,1942]
[null,null,null,null,null,1941]
[null,null,null,null,null,1940]
[null,null,null,null,null,1939]
[null,null,null,null,null,1938]
[null,null,null,null,null,1937]
[null,null,null,null,null,1936]
[null,null,null,null,null,1935]
[null,null,null,null,null,1934]
[null,null,null,null,null,1933]
[null,null,null,null,null,1932]
[null,null,null,null,null,1931]
[null,null,null,null,null,1930]
[null,null,null,null,null,1929]
[null,null,null,null,null,1928]
[null,null,null,null,null,1927]
[null,null,null,null,null,1926]

{"sheet":"SI Data","index":1,"n_rows":9,"n_cols":63,"rows_kept":9,"cut":false,"hidden":false,"merged":[[5,0,5,10],[5,14,6,14],[5,20,5,22],[3,0,3,1],[6,29,9,29],[6,21,9,21],[6,27,9,27],[6,26,9,26],[5,25,5,30],[6,28,9,28],[3,54,3,55],[1,0,1,1],[6,24,9,24],[5,31,5,32],[7,8,9,8],[7,9,9,9],[7,10,9,10],[7,11,9,11],[6,8,6,12],[6,20,9,20],[5,55,5,56],[6,22,9,22],[3,8,3,10],[1,8,1,14],[5,53,5,54],[7,12,9,12],[7,35,9,35],[1,60,1,61],[3,45,3,46],[1,54,1,55],[3,60,3,61],[6,48,9,48],[6,49,6,50],[5,34,5,37],[5,38,5,42],[7,39,9,39],[5,46,5,47],[1,45,1,46],[6,56,9,56],[6,34,6,37],[6,38,6,39],[7,40,9,40],[7,42,9,42],[5,48,5,51],[7,36,9,36],[7,37,9,37],[6,40,6,41],[7,41,9,41],[5,44,5,45],[1,2,1,4],[3,2,3,4],[6,55,9,55],[6,25,9,25],[7,34,9,34],[7,38,9,38],[1,37,1,38],[1,50,1,51],[6,46,9,46],[6,47,9,47],[1,32,1,34],[3,32,3,34],[6,30,9,30],[6,51,9,51],[7,49,9,49],[7,50,9,50]]}
[]
["Organisation Name:",null,null,null,null,null,null,"Business Contact Name:",null,null,null,null,null,null,null,null,"Month Submitted:",null,null,null,null,null,null,null,null,null,null,null,null,null,null,"Organisation Name:",{"$f":"IF($C2=\"\",\"\",$C2)","v":""},null,null,null,"Organisation Contact Name:",{"$f":"IF($I2=\"\",\"\",$I2)","v":""},null,null,null,null,null,null,"Organisation Name:",{"$f":"IF($C2=\"\",\"\",$C2)","v":""},null,null,null,"Organisation Contact Name:",{"$f":"IF($I2=\"\",\"\",$I2)","v":""},null,null,"Organisation Name:",{"$f":"IF($C2=\"\",\"\",$C2)","v":""},null,null,null,"Business Contact Name:",null,{"$f":"IF($I2=\"\",\"\",$I2)","v":""}]
[]
["Project Name:",null,null,null,null,null,null,"Application No:",null,null,null,null,null,null,null,null,"Date:",null,null,"2007-01-15",null,null,null,null,null,null,null,null,null,null,null,"Project Name:",{"$f":"$C4","v":0},null,null,null,"Application Number:",{"$f":"$I4","v":0},null,null,"Date:",{"$f":"IF($U4=\"\",\"\",$U4)","v":""},null,null,"Project Name:",{"$f":"$C4","v":0},null,null,null,"Application Number:",{"$f":"$I4","v":0},null,null,"Project Name:",{"$f":"$C4","v":0},null,null,null,"Application Number:",null,{"$f":"$I4","v":0}]
[null,null,null,null,null,null,null,null,null,null,null,null,null,null,null,null,null,null,null,null,null,null,null,null,null,null,null,null,null,null,null,null,null,null,null,null,null,null,null,null,null,null,null,null,null,null,null,null,null,null,null,null,null,null,null,null,null,null,null,null,null,null,"V2.1 - Nov2017"]
["PARTICIPANT DETAILS",null,null,null,null,null,null,null,null,null,null,null,null,null,null,null,null,null,null,null,"EMPLOYMENT/ UNEMPLOYMENT DETAILS ",null,null,null,"PARTICIPATION DETAILS                            ASSISTANCE TOOL","PARTICIPANT DETAILS",null,null,null,null,null,"PARTICIPANT DETAILS",null,null,"COMPULSORY MODULES",null,null,null,"ELECTIVE MODULES",null,null,null,null,null,"PARTICIPANT DETAILS",null,"Exit Details",null,"COMPLETION",null,null,null,null,"PARTICIPANT DETAILS",null,"POST PARTICIPATION",null,null,null,null,null,null,"Progressive Counter"]
["DATE",null,null,null,null,null,null,null,"EQUITY GROUP",null,null,null,null,null,null,null,null,null,"QSA Data (for 15 - 17 year olds only)",null,"Workforce Australia Status","Employment Status","Length of Unemployment",null,"Work  Placement ","Learner Support","Accredited Training","Transport and Childcare ","Retrenched Worker","Training and Support Plan Completed","Qualification Level",null,null,null,null,null,null,null,"A. Clerical/ Administrative",null,"B. Construction/ Landscaping",null,null,null,null,null,"Exit Date","Successfully Completed (Full Qualification)",null,"Employment",null,"Training and Further Education",null,null,null,"Employment (6 months)","Training and Further Education",null,null,null,null,1018,1000]
["COMMENCED","LAST","FIRST","TELEPHONE","MOBILE","EMAIL","GENDER","D.O.B","Indigenous","CALD","Disability","Veteran","DFV",null,"Address","Suburb","Post",null,"LUI Number",null,null,null,null,null,null,null,null,null,null,null,null,"LAST NAME","FIRST NAME","WORK PLACEMENT ","1. Social and Work Environment","2. Workplace Health and Safety","3. Problem Solving and Planning","4. Job Search and Career Planning","A4. Office Technology","A5. Records Handling","B4. Basic Construction Materials","B5. Revegetation Skills","C5. Horticulture Equipment",null,"LAST NAME","FIRST NAME",null,null,null,"Type","Increased Hours (Y/N)",null,null,"LAST NAME","FIRST NAME"]
["PROJECT","NAME","NAME","NUMBER",null,null,null,null,null,null,null,null,null,null,null,null,"Code",null,null,null,null,null,null,null,null,null,null,null,null,null,null,null,null,"INTAKE NO."]